fUSD/lending_fUSD_20240620
["ID","MTS","AMOUNT","RATE_DAILY","PERIOD"]
[329932750,1718843442741,-534.91,0.00013698,2]
[329932751,1718843442751,-500.0,0.00013698,2]
[329932752,1718843442762,-500.0,0.00013698,2]
[329932753,1718843442771,-519.04,0.00013698,2]
[329932754,1718843442780,-1219.52,0.00013698,2]
[329932755,1718843442790,-511.3,0.00013698,2]
[329932756,1718843442799,-500.0,0.00013698,2]
[329932757,1718843442809,-853.37,0.00013698,2]
[329932758,1718843442818,-500.0,0.00013698,2]
[329932759,1718843442829,-699.02,0.00013698,2]
[329932760,1718843442838,-614.99,0.00013698,2]
[329932762,1718843442848,-805.25,0.00013698,2]
[329932764,1718843442857,-918.83,0.00013698,2]
[329932766,1718843442866,-808.2,0.00013698,2]
[329932769,1718843442875,-299.97899502,0.00013698,2]
[329932869,1718843443996,-244.34100498,0.00013698,2]
[329932870,1718843444006,-783.01,0.00013698,2]
[329932871,1718843444015,-500.0,0.00013698,2]
[329932872,1718843444024,-434.63339984,0.00013698,2]
[329932873,1718843444036,-351.03660016,0.00013698,2]
[329932874,1718843444046,-7.95463793,0.00013698,2]
[329932875,1718843444057,-492.04536207,0.00013698,2]
[329932876,1718843444066,-44.09963794,0.00013698,2]
[329932877,1718843444327,-825.13036206,0.00013698,2]
[329932878,1718843444338,-1128.26,0.00013698,2]
[329932879,1718843444347,-978.78,0.00013698,2]
[329932880,1718843444357,-500.0,0.00013698,2]
[329932881,1718843444367,-500.0,0.00013698,2]
[329932882,1718843444378,-878.3,0.00013698,2]
[329932883,1718843444389,-749.69,0.00013698,2]
[329932884,1718843444398,-500.0,0.00013698,2]
[329932885,1718843444408,-500.0,0.00013698,2]
[329932886,1718843444418,-1571.91,0.00013698,2]
[329932887,1718843444430,-906.43,0.00013698,2]
[329932888,1718843444439,-500.0,0.00013698,2]
[329932889,1718843444448,-838.25,0.00013698,2]
[329932890,1718843444458,-1067.03,0.00013698,2]
[329932891,1718843444468,-655.22,0.00013698,2]
[329932892,1718843444478,-1260.29,0.00013698,2]
[329932893,1718843444487,-500.0,0.00013698,2]
[329932894,1718843444498,-500.0,0.00013698,2]
[329932895,1718843444508,-500.0,0.00013698,2]
[329932896,1718843444519,-500.0,0.00013698,2]
[329932897,1718843444529,-500.0,0.00013698,2]
[329932898,1718843444540,-1174.45,0.00013698,2]
[329932899,1718843444549,-500.0,0.00013698,2]
[329932900,1718843444559,-1316.75,0.00013698,2]
[329932901,1718843444570,-784.07,0.00013698,2]
[329932902,1718843444579,-640.71,0.00013698,2]
[329932903,1718843444588,-900.89,0.00013698,2]
[329932904,1718843444598,-845.0,0.00013698,2]
[329932905,1718843444607,-502.40923827,0.00013698,2]
[329932906,1718843444616,-500.0,0.00013698,2]
[329932907,1718843444626,-688.39,0.00013698,2]
[329932908,1718843444636,-780.04,0.00013698,2]
[329932909,1718843444647,-500.0,0.00013698,2]
[329932910,1718843444658,-665.67,0.00013698,2]
[329932911,1718843444668,-500.0,0.00013698,2]
[329932912,1718843444679,-500.0,0.00013698,2]
[329932913,1718843444689,-616.88,0.00013698,2]
[329932914,1718843444698,-500.0,0.00013698,2]
[329932915,1718843444707,-504.79175689,0.00013698,2]
[329932916,1718843444716,-817.86,0.00013698,2]
[329932917,1718843444728,-500.0,0.00013698,2]
[329932918,1718843444737,-500.0,0.00013698,2]
[329932919,1718843444746,-500.0,0.00013698,2]
[329932920,1718843444756,-645.42,0.00013698,2]
[329932921,1718843444765,-500.0,0.00013698,2]
[329932922,1718843444774,-903.78,0.00013698,2]
[329932923,1718843444784,-531.28,0.00013698,2]
[329932924,1718843444793,-500.0,0.00013698,2]
[329932925,1718843444803,-1491.99,0.00013698,2]
[329932926,1718843444812,-854.36,0.00013698,2]
[329932927,1718843444821,-609.69,0.00013698,2]
[329932928,1718843444830,-500.0,0.00013698,2]
[329932929,1718843444840,-500.0,0.00013698,2]
[329932930,1718843444849,-1251.35,0.00013698,2]
[329932931,1718843444858,-1200.6,0.00013698,2]
[329932932,1718843444868,-521.87,0.00013698,2]
[329932933,1718843444878,-572.0,0.00013698,2]
[329932934,1718843444887,-500.0,0.00013698,2]
[329932935,1718843444896,-500.0,0.00013698,2]
[329932936,1718843444905,-651.65,0.00013698,2]
[329932937,1718843444914,-1172.68,0.00013698,2]
[329932938,1718843444923,-683.44,0.00013698,2]
[329932939,1718843444933,-500.0,0.00013698,2]
[329932940,1718843444942,-500.0,0.00013698,2]
[329932941,1718843444951,-457.93219588,0.00013698,2]
[329932942,1718843444961,-689.04,0.00013698,2]
[329932943,1718843444970,-500.0,0.00013698,2]
[329932944,1718843444979,-500.0,0.00013698,2]
[329932945,1718843444988,-933.41,0.00013698,2]
[329932946,1718843444997,-500.0,0.00013698,2]
[329932947,1718843445007,-500.0,0.00013698,2]
[329932948,1718843445016,-500.0,0.00013698,2]
[329932949,1718843445025,-591.17,0.00013698,2]
[329932950,1718843445035,-1836.45,0.00013698,2]
[329932951,1718843445044,-1130.73,0.00013698,2]
[329932952,1718843445052,-1386.36,0.00013698,2]
[329932953,1718843445061,-978.64,0.00013698,2]
[329932954,1718843445071,-500.0,0.00013698,2]
[329932955,1718843445080,-500.0,0.00013698,2]
[329932956,1718843445088,-657.39,0.00013698,2]
[329932957,1718843445098,-500.0,0.00013698,2]
[329932958,1718843445107,-1523.93,0.00013698,2]
[329932959,1718843445116,-1550.52,0.00013698,2]
[329932960,1718843445125,-500.0,0.00013698,2]
[329932961,1718843445134,-500.0,0.00013698,2]
[329932962,1718843445144,-1054.13,0.00013698,2]
[329932963,1718843445152,-745.45,0.00013698,2]
[329932964,1718843445162,-500.0,0.00013698,2]
[329932965,1718843445172,-472.69,0.00013698,2]
[329932966,1718843445182,-1065.23,0.00013698,2]
[329932967,1718843445191,-500.0,0.00013698,2]
[329932968,1718843445201,-500.0,0.00013698,2]
[329932969,1718843445210,-500.0,0.00013698,2]
[329932970,1718843445219,-500.0,0.00013698,2]
[329932971,1718843445229,-1826.06,0.00013698,2]
[329932972,1718843445239,-1054.89,0.00013698,2]
[329932973,1718843445249,-500.0,0.00013698,2]
[329932974,1718843445259,-1109.1,0.00013698,2]
[329932975,1718843445269,-500.0,0.00013698,2]
[329932976,1718843445279,-510.39032584,0.00013698,2]
[329932977,1718843445290,-500.0,0.00013698,2]
[329932978,1718843445299,-500.0,0.00013698,2]
[329932979,1718843445309,-883.77,0.00013698,2]
[329932980,1718843445319,-668.8,0.00013698,2]
[329932981,1718843445328,-1055.5,0.00013698,2]
[329932982,1718843445338,-267.8547596,0.00013698,2]
[329932983,1718843445347,-500.0,0.00013698,2]
[329932984,1718843445355,-656.26,0.00013698,2]
[329932985,1718843445364,-500.0,0.00013698,2]
[329932986,1718843445374,-500.0,0.00013698,2]
[329932987,1718843445383,-986.38,0.00013698,2]
[329932988,1718843445393,-13535.08,0.00013698,2]
[329932989,1718843445403,-1136.68,0.00013698,2]
[329932990,1718843445413,-1357.96,0.00013698,2]
[329932991,1718843445422,-771.33,0.00013698,2]
[329932992,1718843445432,-552.50467828,0.00013698,2]
[329932993,1718843445442,-552.42,0.00013698,2]
[329932994,1718843445452,-502.27,0.00013698,2]
[329932995,1718843445463,-663.21,0.00013698,2]
[329932996,1718843445473,-738.7,0.00013698,2]
[329932997,1718843445485,-500.0,0.00013698,2]
[329932998,1718843445494,-1510.11,0.00013698,2]
[329932999,1718843445503,-2919.06,0.00013698,2]
[329933000,1718843445513,-564.38,0.00013698,2]
[329933001,1718843445524,-943.76,0.00013698,2]
[329933002,1718843445534,-1639.01,0.00013698,2]
[329933003,1718843445544,-15207.32,0.00013698,2]
[329933004,1718843445553,-47346.86,0.00013698,2]
[329933005,1718843445563,-500.0,0.00013698,2]
[329933006,1718843445572,-500.0,0.00013698,2]
[329933007,1718843445582,-2681.45,0.00013698,2]
[329933008,1718843445591,-731.35,0.00013698,2]
[329933009,1718843445601,-7500.55,0.00013698,2]
[329933010,1718843445610,-1240.03,0.00013698,2]
[329933011,1718843445621,-1314.74,0.00013698,2]
[329933012,1718843445630,-500.0,0.00013698,2]
[329933013,1718843445640,-500.0,0.00013698,2]
[329933014,1718843445653,-500.0,0.00013698,2]
[329933015,1718843445663,-973.33,0.00013698,2]
[329933016,1718843445672,-1438.13,0.00013698,2]
[329933017,1718843445682,-2029.85,0.00013698,2]
[329933018,1718843445691,-624.5,0.00013698,2]
[329933019,1718843445702,-626.58,0.00013698,2]
[329933020,1718843445711,-1709.25,0.00013698,2]
[329933021,1718843445720,-908.65,0.00013698,2]
[329933022,1718843445730,-1974.92,0.00013698,2]
[329933023,1718843445739,-500.0,0.00013698,2]
[329933025,1718843445749,-1070.12,0.00013698,2]
[329933027,1718843445759,-500.0,0.00013698,2]
[329933029,1718843445769,-631.75613005,0.00013698,2]
[329933030,1718843445778,-938.5,0.00013698,2]
[329933031,1718843445787,-500.0,0.00013698,2]
[329933032,1718843445797,-500.0,0.00013698,2]
[329933033,1718843445807,-3459.45,0.00013698,2]
[329933034,1718843445816,-1402.94,0.00013698,2]
[329933035,1718843445825,-810.86,0.00013698,2]
[329933036,1718843445834,-4118.86,0.00013698,2]
[329933037,1718843445843,-500.0,0.00013698,2]
[329933038,1718843445852,-1125.54,0.00013698,2]
[329933039,1718843445862,-650.38,0.00013698,2]
[329933040,1718843445871,-2619.56,0.00013698,2]
[329933041,1718843445881,-21830.62612892,0.00013698,2]
[329933042,1718843445899,-529.37778124,0.00013698,2]
[329933043,1718843445920,-504.08999982,0.00013698,2]
[329933044,1718843445932,-378.1299995,0.00013698,2]
[329933045,1718843445943,-17781.87110618,0.00013698,2]
[329933046,1718843445954,-1125.02620918,0.00013698,2]
[329933047,1718843446001,-9915.43877516,0.00013698,2]
[329933048,1718843446010,-607.85,0.00013698,2]
[329933049,1718843446019,-1678.61,0.00013698,2]
[329933050,1718843446028,-934.84,0.00013698,2]
[329933051,1718843446037,-776.4,0.00013698,2]
[329933052,1718843446046,-891.89,0.00013698,2]
[329933053,1718843446055,-799.56,0.00013698,2]
[329933054,1718843446065,-3664.93,0.00013698,2]
[329933055,1718843446074,-4555.23,0.00013698,2]
[329933056,1718843446083,-515.24,0.00013698,2]
[329933057,1718843446092,-817.38,0.00013698,2]
[329933058,1718843446101,-500.0,0.00013698,2]
[329933059,1718843446110,-500.0,0.00013698,2]
[329933060,1718843446119,-2595.64,0.00013698,2]
[329933061,1718843446128,-500.0,0.00013698,2]
[329933062,1718843446137,-823.5,0.00013698,2]
[329933063,1718843446145,-2869.49,0.00013698,2]
[329933064,1718843446155,-6199.01,0.00013698,2]
[329933065,1718843446164,-14284.53,0.00013698,2]
[329933066,1718843446174,-500.0,0.00013698,2]
[329933067,1718843446184,-554.36,0.00013698,2]
[329933068,1718843446193,-500.0,0.00013698,2]
[329933069,1718843446202,-500.0,0.00013698,2]
[329933070,1718843446212,-3327.34,0.00013698,2]
[329933071,1718843446221,-1137.01,0.00013698,2]
[329933072,1718843446230,-500.0,0.00013698,2]
[329933073,1718843446240,-1332.71,0.00013698,2]
[329933074,1718843446249,-500.0,0.00013698,2]
[329933075,1718843446258,-1773.42,0.00013698,2]
[329933076,1718843446267,-500.0,0.00013698,2]
[329933077,1718843446276,-1471.15,0.00013698,2]
[329933078,1718843446285,-8424.7,0.00013698,2]
[329933079,1718843446294,-1202.38,0.00013698,2]
[329933080,1718843446303,-500.0,0.00013698,2]
[329933081,1718843446312,-500.0,0.00013698,2]
[329933082,1718843446322,-598.01,0.00013698,2]
[329933083,1718843446330,-13998.14,0.00013698,2]
[329933084,1718843446340,-2923.09,0.00013698,2]
[329933085,1718843446349,-559.02,0.00013698,2]
[329933086,1718843446358,-4006.82,0.00013698,2]
[329933087,1718843446367,-500.0,0.00013698,2]
[329933088,1718843446376,-642.24,0.00013698,2]
[329933089,1718843446385,-1328.0,0.00013698,2]
[329933090,1718843446395,-2253.14,0.00013698,2]
[329933091,1718843446404,-779.22,0.00013698,2]
[329933092,1718843446413,-8851.27,0.00013698,2]
[329933093,1718843446423,-1379.37,0.00013698,2]
[329933094,1718843446436,-5000.0,0.00013698,2]
[329933095,1718843446445,-500.0,0.00013698,2]
[329933096,1718843446454,-5103.37,0.00013698,2]
[329933097,1718843446463,-5835.53,0.00013698,2]
[329933098,1718843446472,-733.62,0.00013698,2]
[329933099,1718843446482,-7355.64,0.00013698,2]
[329933100,1718843446491,-627.47,0.00013698,2]
[329933101,1718843446500,-500.0,0.00013698,2]
[329933102,1718843446510,-633.84,0.00013698,2]
[329933103,1718843446519,-752.9,0.00013698,2]
[329933104,1718843446528,-1138.02,0.00013698,2]
[329933105,1718843446537,-500.0,0.00013698,2]
[329933106,1718843446546,-995.13,0.00013698,2]
[329933108,1718843446556,-2541.51,0.00013698,2]
[329933110,1718843446565,-500.0,0.00013698,2]
[329933111,1718843446574,-676.55,0.00013698,2]
[329933112,1718843446583,-14646.09427018,0.00013698,2]
[329933113,1718843446596,-588.209208,0.00013698,2]
[329933114,1718843446607,-3762.41856736,0.00013698,2]
[329933115,1718843446618,-485.61851801,0.00013698,2]
[329933116,1718843446636,-513.778761,0.00013698,2]
[329933117,1718843446694,-3156.27067545,0.00013698,2]
[329933118,1718843446704,-1032.29,0.00013698,2]
[329933119,1718843446714,-5194.08,0.00013698,2]
[329933120,1718843446725,-500.0,0.00013698,2]
[329933121,1718843446735,-8951.91,0.00013698,2]
[329933122,1718843446744,-1932.8,0.00013698,2]
[329933123,1718843446753,-9395.12,0.00013698,2]
[329933124,1718843446763,-997.78,0.00013698,2]
[329933125,1718843446773,-1380.02,0.00013698,2]
[329933126,1718843446783,-500.0,0.00013698,2]
[329933127,1718843446793,-3121.51,0.00013698,2]
[329933128,1718843446802,-2325.58,0.00013698,2]
[329933129,1718843446811,-1854.41,0.00013698,2]
[329933130,1718843446820,-3591.62,0.00013698,2]
[329933131,1718843446829,-370.21949898,0.00013698,2]
[329933132,1718843446839,-1186.48,0.00013698,2]
[329933133,1718843446849,-2039.12,0.00013698,2]
[329933134,1718843446858,-816.59,0.00013698,2]
[329933135,1718843446867,-1542.71,0.00013698,2]
[329933136,1718843446877,-15956.34,0.00013698,2]
[329933137,1718843446886,-4961.98,0.00013698,2]
[329933138,1718843446896,-500.0,0.00013698,2]
[329933139,1718843446905,-500.0,0.00013698,2]
[329933140,1718843446915,-1819.54,0.00013698,2]
[329933141,1718843446924,-536.9,0.00013698,2]
[329933142,1718843446937,-500.0,0.00013698,2]
[329933143,1718843446946,-8540.52,0.00013698,2]
[329933144,1718843446955,-2265.92,0.00013698,2]
[329933145,1718843446964,-756.25,0.00013698,2]
[329933146,1718843446973,-3741.47,0.00013698,2]
[329933147,1718843446982,-3849.66,0.00013698,2]
[329933148,1718843446992,-995.38,0.00013698,2]
[329933149,1718843447001,-1079.03,0.00013698,2]
[329933150,1718843447011,-1772.25,0.00013698,2]
[329933151,1718843447020,-2105.72,0.00013698,2]
[329933152,1718843447030,-500.0,0.00013698,2]
[329933153,1718843447040,-500.0,0.00013698,2]
[329933154,1718843447049,-500.0,0.00013698,2]
[329933155,1718843447061,-500.0,0.00013698,2]
[329933156,1718843447070,-1072.29,0.00013698,2]
[329933157,1718843447079,-4413.4,0.00013698,2]
[329933158,1718843447088,-10257.55,0.00013698,2]
[329933159,1718843447098,-541.68,0.00013698,2]
[329933160,1718843447107,-4107.96,0.00013698,2]
[329933161,1718843447116,-1704.37,0.00013698,2]
[329933162,1718843447125,-500.0,0.00013698,2]
[329933163,1718843447134,-1057.92,0.00013698,2]
[329933164,1718843447145,-500.0,0.00013698,2]
[329933165,1718843447154,-1189.4,0.00013698,2]
[329933166,1718843447164,-1407.34,0.00013698,2]
[329933167,1718843447174,-1324.4,0.00013698,2]
[329933168,1718843447186,-2141.64,0.00013698,2]
[329933169,1718843447195,-500.0,0.00013698,2]
[329933170,1718843447204,-5051.98,0.00013698,2]
[329933171,1718843447213,-25082.68,0.00013698,2]
[329933172,1718843447224,-5633.97,0.00013698,2]
[329933173,1718843447235,-1047.63,0.00013698,2]
[329933174,1718843447244,-3219.38,0.00013698,2]
[329933175,1718843447255,-980.94,0.00013698,2]
[329933176,1718843447266,-1990.04,0.00013698,2]
[329933177,1718843447275,-6115.37,0.00013698,2]
[329933178,1718843447284,-500.0,0.00013698,2]
[329933179,1718843447293,-500.0,0.00013698,2]
[329933180,1718843447303,-500.0,0.00013698,2]
[329933181,1718843447312,-1577.73,0.00013698,2]
[329933182,1718843447321,-5354.13,0.00013698,2]
[329933183,1718843447330,-515.33,0.00013698,2]
[329933184,1718843447340,-2510.82,0.00013698,2]
[329933185,1718843447349,-500.0,0.00013698,2]
[329933186,1718843447359,-3250.83,0.00013698,2]
[329933187,1718843447367,-1110.96,0.00013698,2]
[329933188,1718843447376,-1991.45,0.00013698,2]
[329933189,1718843447385,-500.0,0.00013698,2]
[329933190,1718843447395,-1495.02,0.00013698,2]
[329933191,1718843447404,-500.0,0.00013698,2]
[329933192,1718843447413,-2483.96,0.00013698,2]
[329933193,1718843447422,-2481.35,0.00013698,2]
[329933194,1718843447433,-2298.89,0.00013698,2]
[329933195,1718843447442,-2981.36,0.00013698,2]
[329933196,1718843447452,-1602.97,0.00013698,2]
[329933197,1718843447461,-1004.63,0.00013698,2]
[329933198,1718843447470,-779.71,0.00013698,2]
[329933199,1718843447480,-500.0,0.00013698,2]
[329933200,1718843447489,-1551.85,0.00013698,2]
[329933201,1718843447498,-2598.02,0.00013698,2]
[329933202,1718843447508,-500.0,0.00013698,2]
[329933203,1718843447528,-3231.08,0.00013698,2]
[329933204,1718843447538,-589.68,0.00013698,2]
[329933205,1718843447547,-3268.37,0.00013698,2]
[329933206,1718843447557,-500.0,0.00013698,2]
[329933207,1718843447566,-5516.3,0.00013698,2]
[329933208,1718843447576,-5299.75,0.00013698,2]
[329933209,1718843447585,-1117.59,0.00013698,2]
[329933210,1718843447595,-1066.2,0.00013698,2]
[329933211,1718843447605,-14793.8,0.00013698,2]
[329933212,1718843447614,-7723.14,0.00013698,2]
[329933213,1718843447624,-1503.57,0.00013698,2]
[329933214,1718843447634,-1017.06,0.00013698,2]
[329933215,1718843447643,-611.56,0.00013698,2]
[329933216,1718843447657,-2953.41,0.00013698,2]
[329933217,1718843447666,-500.0,0.00013698,2]
[329933218,1718843447676,-500.0,0.00013698,2]
[329933219,1718843447687,-500.0,0.00013698,2]
[329933220,1718843447696,-500.0,0.00013698,2]
[329933221,1718843447706,-503.35114527,0.00013698,2]
[329933222,1718843447716,-4737.81,0.00013698,2]
[329933223,1718843447727,-1564.71,0.00013698,2]
[329933224,1718843447736,-500.0,0.00013698,2]
[329933225,1718843447747,-601.41,0.00013698,2]
[329933226,1718843447756,-4451.13,0.00013698,2]
[329933227,1718843447766,-1295.74,0.00013698,2]
[329933228,1718843447776,-500.0,0.00013698,2]
[329933229,1718843447785,-11585.43,0.00013698,2]
[329933230,1718843447795,-2685.6,0.00013698,2]
[329933231,1718843447805,-500.0,0.00013698,2]
[329933232,1718843447814,-4209.07,0.00013698,2]
[329933233,1718843447824,-500.0,0.00013698,2]
[329933234,1718843447834,-1185.52,0.00013698,2]
[329933235,1718843447844,-500.0,0.00013698,2]
[329933236,1718843447854,-2066.11,0.00013698,2]
[329933237,1718843447864,-500.0,0.00013698,2]
[329933238,1718843447874,-1148.93,0.00013698,2]
[329933239,1718843447884,-1409.12,0.00013698,2]
[329933240,1718843447894,-1305.15,0.00013698,2]
[329933241,1718843447904,-7066.07,0.00013698,2]
[329933242,1718843447914,-5807.8,0.00013698,2]
[329933243,1718843447924,-5638.98,0.00013698,2]
[329933244,1718843447936,-500.0,0.00013698,2]
[329933245,1718843447945,-6745.05,0.00013698,2]
[329933246,1718843447955,-13205.1,0.00013698,2]
[329933247,1718843447965,-827.64,0.00013698,2]
[329933248,1718843447975,-1381.08,0.00013698,2]
[329933249,1718843447984,-3046.91,0.00013698,2]
[329933250,1718843447994,-2227.89,0.00013698,2]
[329933251,1718843448004,-614.06,0.00013698,2]
[329933252,1718843448014,-774.7,0.00013698,2]
[329933253,1718843448023,-344.09896359,0.00013698,2]
[329933254,1718843448033,-2763.22,0.00013698,2]
[329933255,1718843448042,-4678.11,0.00013698,2]
[329933256,1718843448052,-1009.56,0.00013698,2]
[329933257,1718843448062,-500.0,0.00013698,2]
[329933258,1718843448071,-500.0,0.00013698,2]
[329933259,1718843448081,-500.0,0.00013698,2]
[329933260,1718843448090,-574.85676721,0.00013698,2]
[329933261,1718843448100,-521.98650728,0.00013698,2]
[329933262,1718843448109,-500.0,0.00013698,2]
[329933263,1718843448119,-3507.25,0.00013698,2]
[329933264,1718843448128,-3203.52,0.00013698,2]
[329933265,1718843448138,-452.12842315,0.00013698,2]
[329933266,1718843448153,-511.66,0.00013698,2]
[329933267,1718843448163,-2164.95,0.00013698,2]
[329933268,1718843448173,-4496.7,0.00013698,2]
[329933269,1718843448184,-500.0,0.00013698,2]
[329933270,1718843448194,-2309.09,0.00013698,2]
[329933271,1718843448204,-1852.45,0.00013698,2]
[329933272,1718843448215,-2817.89,0.00013698,2]
[329933273,1718843448224,-7141.41,0.00013698,2]
[329933274,1718843448235,-500.0,0.00013698,2]
[329933275,1718843448245,-500.0,0.00013698,2]
[329933276,1718843448257,-500.0,0.00013698,2]
[329933277,1718843448268,-500.0,0.00013698,2]
[329933278,1718843448279,-500.0,0.00013698,2]
[329933279,1718843448289,-500.0,0.00013698,2]
[329933280,1718843448300,-500.0,0.00013698,2]
[329933281,1718843448310,-547.57,0.00013698,2]
[329933282,1718843448321,-601.59,0.00013698,2]
[329933283,1718843448689,-500.0,0.00013698,2]
[329933284,1718843448700,-500.0,0.00013698,2]
[329933285,1718843448710,-1017.1,0.00013698,2]
[329933286,1718843448721,-500.0,0.00013698,2]
[329933287,1718843448733,-4517.18,0.00013698,2]
[329933288,1718843448743,-500.0,0.00013698,2]
[329933289,1718843448753,-542.4,0.00013698,2]
[329933290,1718843448762,-6253.56,0.00013698,2]
[329933291,1718843448772,-1669.6,0.00013698,2]
[329933292,1718843448782,-2844.03,0.00013698,2]
[329933293,1718843448791,-500.0,0.00013698,2]
[329933294,1718843448801,-500.0,0.00013698,2]
[329933295,1718843448810,-500.0,0.00013698,2]
[329933296,1718843448821,-766.57,0.00013698,2]
[329933297,1718843448830,-500.0,0.00013698,2]
[329933298,1718843448840,-1141.97,0.00013698,2]
[329933299,1718843448849,-500.0,0.00013698,2]
[329933300,1718843448859,-500.0,0.00013698,2]
[329933301,1718843448868,-1268.29,0.00013698,2]
[329933302,1718843448878,-2221.87,0.00013699,2]
[329933303,1718843448887,-200.0,0.00013699,2]
[329933304,1718843448897,-250.0,0.00013699,2]
[329933305,1718843448906,-1631.38,0.00013699,2]
[329933306,1718843448916,-500.0,0.000137,2]
[329933307,1718843448925,-150.0,0.00013727,2]
[329933308,1718843448937,-150.0,0.00013727,2]
[329933309,1718843448947,-150.0,0.00013734,2]
[329933310,1718843448956,-150.0,0.00013739,2]
[329933311,1718843448966,-150.0,0.0001374,2]
[329933312,1718843448976,-150.0,0.00013741,2]
[329933313,1718843448986,-150.0,0.00013744,2]
[329933314,1718843448997,-150.0,0.00013745,2]
[329933315,1718843449007,-150.0,0.00013751,2]
[329933316,1718843449017,-150.0,0.00013754,2]
[329933317,1718843449027,-150.0,0.00013754,2]
[329933318,1718843449038,-150.0,0.0001376,2]
[329933319,1718843449047,-150.0,0.00013761,2]
[329933320,1718843449056,-150.0,0.00013769,2]
[329933321,1718843449067,-150.0,0.00013771,2]
[329933322,1718843449077,-150.0,0.00013774,2]
[329933323,1718843449086,-150.0,0.00013774,2]
[329933324,1718843449096,-150.0,0.00013778,2]
[329933325,1718843449105,-150.0,0.00013779,2]
[329933326,1718843449114,-150.0,0.00013779,2]
[329933327,1718843449123,-150.0,0.0001378,2]
[329933328,1718843449133,-150.0,0.00013783,2]
[329933329,1718843449142,-150.0,0.00013785,2]
[329933330,1718843449152,-155.47073311,0.00013788,2]
[329933331,1718843449161,-199.4396242,0.00013789,2]
[329933332,1718843449172,-500.0,0.00013789,2]
[329933333,1718843449182,-150.0,0.00013789,2]
[329933334,1718843449191,-4656.2295839,0.0001379,2]
[329933335,1718843449200,-4656.2295839,0.0001379,2]
[329933336,1718843449209,-4656.2295839,0.0001379,2]
[329933337,1718843449218,-4656.2295839,0.0001379,2]
[329933338,1718843449228,-4656.2295839,0.0001379,2]
[329933339,1718843449237,-4656.2295839,0.0001379,2]
[329933340,1718843449247,-150.0,0.00013795,2]
[329933341,1718843449257,-150.0,0.00013798,2]
[329933342,1718843449266,-152.0,0.00013799,2]
[329933343,1718843449276,-4656.2295839,0.00013799,2]
[329933344,1718843449286,-174.8811,0.000138,2]
[329933345,1718843449296,-150.0,0.00013805,2]
[329933346,1718843449306,-500.0,0.0001381,2]
[329933347,1718843449315,-150.0,0.00013811,2]
[329933348,1718843449324,-150.0,0.00013812,2]
[329933349,1718843449334,-150.0,0.00013817,2]
[329933350,1718843449343,-150.0,0.00013818,2]
[329933351,1718843449353,-150.0,0.00013819,2]
[329933352,1718843449363,-150.0,0.00013821,2]
[329933353,1718843449372,-150.0,0.00013822,2]
[329933354,1718843449382,-150.0,0.00013826,2]
[329933355,1718843449391,-150.0,0.00013828,2]
[329933356,1718843449401,-4656.2295839,0.00013833,2]
[329933357,1718843449411,-150.0,0.00013833,2]
[329933358,1718843449420,-150.0,0.00013835,2]